Cogmind - Beta 15 @@@ ROGUE MODE // 2025.10.09 @ 14:05:14 Player: DietSnapple Result: Destroyed by G-73 Enforcer with Phase Gun Performance ------------- Evolutions (8) 4000 Regions Visited (15) 3000 Robots Destroyed (131) 655 Value Destroyed (4978) 4978 Prototype IDs (39) 780 Alien Tech Used (4) 800 Bonus (1335) 1335 TOTAL SCORE: 15548 Bonus ------- Triggered Max Security 1000 Follower Combat Kills 35 Aligned with FarCom 300 Cogmind --------- Core Integrity 0/1450 Matter 191/300 Energy 99/100 System Corruption 10% Temperature Cool (27) Movement Core (50) Location -2/Quarantine Parts ------- > --- POWER (2) -------- (None) > --- PROPULSION (7) --- (None) > --- UTILITY (12) ----- (None) > --- WEAPON (2) ------- (None) > --- INVENTORY (5) ---- Quantum Capacitor Advanced Force Booster Advanced Point Defense System Enhanced Force Lance Peak State ------------ > --- POWER ------------ Antimatter Reactor Micro Antimatter Reactor > --- PROPULSION ------- Cooled Antigrav System Cooled Antigrav System Cooled Antigrav System Cooled Antigrav System Combat Antigrav System Combat Antigrav System > --- UTILITY ---------- Advanced Power Amplifier Large Storage Unit Advanced Weight Redist. System Spectral Analyzer Improved Melee Analysis Suite Improved Melee Analysis Suite Improved Melee Analysis Suite Advanced Force Booster Advanced Force Booster Advanced Transmission Jammer Advanced Point Defense System > --- WEAPON ----------- Gamma Bomb Array Enhanced Force Lance > --- INVENTORY -------- Light Neutrino Core Micro Antimatter Reactor Antigrav System Combat Gravmag System Improved Antigrav System Combat Antigrav System Combat Antigrav System Combat Antigrav System Advanced Power Amplifier Experimental Matter Compressor Advanced Visual Processing Unit Thermal Defense Suite Gamma Bomb Array Enhanced Force Lance [Rating: 157] Favorites ----------- Power Light Ion Engine Engine Light Ion Engine Power Core Nuclear Core Reactor Antimatter Reactor Propulsion Cooled Antigrav System Treads Light Treads Leg Carbon-fiber Leg Wheel Compact Wheel Hover Unit Cooled Antigrav System Flight Unit Nuclear Pulse Thruster Utility Improved Melee Analysis Suite Device Advanced Power Amplifier Storage Large Storage Unit Processor Improved Melee Analysis Suite Hackware Hacking Suite Protection Hardened Light Armor Plating Artifact Phase Redirector Weapon Assault Rifle Energy Gun Variable Charge Gun Energy Cannon Nova Cannon Ballistic Gun Assault Rifle Ballistic Cannon Flak Cannon Launcher Gamma Bomb Array Special Weapon Remote Datajack Slashing Weapon Axe Piercing Weapon Enhanced Force Lance Special Melee Weapon Improved Datajack Build | -11 -10 -10 -10 -9 -8 -7 -6 -6 -6 -5 -4 -3 -3 -2 -2 ------- Run | Yrd Mat Min Exi Min Mat Fac Fac Low Low Fac Fac Res Arm Res Qua Slots Evolved 16 | . . . . . 4 2 2 . . 2 2 2 . 2 . Power 1 | . . . . . . . 1 . . . . . . . . Propulsion 5 | . . . . . 1 2 . . . . 1 . . 1 . Utility 10 | . . . . . 3 . 1 . . 2 1 2 . 1 . Weapon . | . . . . . . . . . . . . . . . . Parts Attached 194 | 6 10 3 . . 33 18 4 8 4 6 29 33 23 10 7 Power 26 | 1 1 1 . . 2 1 . 2 1 2 5 3 3 3 1 Engine 6 | 1 1 1 . . . . . 1 . 1 1 . . . . Core 9 | . . . . . 2 1 . 1 1 1 2 . . 1 . Reactor 11 | . . . . . . . . . . . 2 3 3 2 1 Propulsion 76 | 2 5 2 . . 12 10 4 1 3 1 12 10 9 4 1 Treads 9 | 2 3 2 . . 2 . . . . . . . . . . Leg 10 | . 2 . . . 8 . . . . . . . . . . Wheel 2 | . . . . . 2 . . . . . . . . . . Hover 29 | . . . . . . . . . . . 7 9 9 4 . Flight 26 | . . . . . . 10 4 1 3 1 5 1 . . 1 Utility 65 | 1 3 . . . 13 2 . 3 . 3 8 16 8 3 5 Device 28 | . 1 . . . 4 . . 2 . 2 3 7 6 1 2 Storage 5 | 1 1 . . . 1 . . . . . . 1 1 . . Processor 14 | . . . . . 1 . . . . 1 2 7 1 1 1 Hackware 5 | . . . . . 2 . . . . . 2 . . 1 . Protection 11 | . 1 . . . 5 2 . 1 . . 1 1 . . . Artifact 2 | . . . . . . . . . . . . . . . 2 Weapon 27 | 2 1 . . . 6 5 . 2 . . 4 4 3 . . Energy Gun 3 | . . . . . . . . . . . 2 1 . . . Energy Cannon 2 | . . . . . . 1 . . . . . . 1 . . Ballistic Gun 7 | 2 1 . . . 3 1 . . . . . . . . . Ballistic Cannon 3 | . . . . . 2 . . . . . . 1 . . . Launcher 3 | . . . . . . 1 . . . . . 1 1 . . Special Weapon 1 | . . . . . . 1 . . . . . . . . . Impact Weapon . | . . . . . . . . . . . . . . . . Slashing Weapon 3 | . . . . . 1 . . 1 . . . 1 . . . Piercing Weapon 4 | . . . . . . . . 1 . . 2 . 1 . . Special Melee Weapon 1 | . . . . . . 1 . . . . . . . . . Unidentified Prototypes 17 | . . . . . 1 . . 1 . . 1 6 1 1 6 Parts Lost 92 | . 2 2 . . 14 9 . 2 4 2 18 4 19 7 9 Power 19 | . 1 1 . . 2 1 . . 1 1 3 1 3 2 3 Propulsion 40 | . . . . . 3 7 . 2 3 1 10 . 8 3 3 Utility 26 | . . . . . 8 . . . . . 4 2 7 2 3 Weapon 7 | . 1 1 . . 1 1 . . . . 1 1 1 . . Highest Loss Streak 11 | . 1 2 . . 6 4 . 2 2 2 11 1 11 5 7 To Critical Strikes . | . . . . . . . . . . . . . . . . Average Backups 8 | 1 7 10 10 11 13 4 4 3 4 3 4 6 12 7 7 Power . | . 1 1 1 1 1 . . . . . . . 1 1 . Propulsion 3 | . 3 5 5 5 4 1 4 . . . 2 1 5 . 1 Utility 2 | . 1 3 3 4 5 1 . 1 4 3 . 2 3 4 4 Weapon 1 | . . 1 1 1 2 . . . . . . 1 1 1 1 Tool/Special . | . . . . . . . . . . . . . . . . Unused Backups 23 | . 3 . . . 7 . 4 2 . . 1 3 1 . 2 Power 2 | . . . . . 1 . . . . . . . . . 1 Propulsion 11 | . 3 . . . 3 . 3 . . . 1 . 1 . . Utility 7 | . . . . . . . 1 2 . . . 3 . . 1 Weapon 3 | . . . . . 3 . . . . . . . . . . Tool/Special . | . . . . . . . . . . . . . . . . Average Slot Usage (%) 81 | . 90 87 85 85 87 71 45 63 62 72 84 86 92 69 64 Engine 3 | . 13 13 14 14 . . . 4 3 1 2 . . . . Core 2 | . . . . . 6 2 . . 2 4 4 . . . . Reactor 2 | . . . . . . . . . . . 1 7 8 5 5 Treads 5 | . 13 28 28 28 3 . . . . . . . . . . Leg 6 | . 14 . . . 19 . . . . . . . . . . Hover 8 | . . . . . . . . . . . 18 25 27 24 18 Flight 5 | . . . . . . 28 19 29 30 27 9 . . . . Device 10 | . 5 . . . 11 7 6 6 6 14 13 16 22 10 13 Storage 6 | . 14 14 14 14 10 . . . . . . . 5 8 7 Processor 6 | . . . . . 5 . . . . 3 4 21 16 10 7 Hackware 4 | . . . . . . 15 13 13 13 11 17 . . 3 3 Protection 5 | . . 10 14 14 11 7 6 4 . . 5 3 1 . . Ballistic Gun 7 | . 27 20 14 14 9 1 . . . . . . . . . Slashing Weapon 1 | . . . . . 5 1 . . 4 5 2 . . . . Piercing Weapon 1 | . . . . . . . . 3 . . 1 3 4 4 3 Peak Build Rating 157 | 6 10 8 8 8 40 46 43 65 65 73 104 149 157 127 144 Average Rating 57 | 3 8 7 7 8 27 37 33 52 60 66 85 128 143 112 114 On Entrance 42 | . 6 7 7 8 8 27 24 43 56 52 62 2 142 101 127 Naked Turns 74 | . . . . . . . . . . . 28 19 . . 27 Heaviest Build 91 | 11 29 28 28 28 46 18 3 29 26 28 38 75 91 61 90 Greatest Support 105 | 40 40 40 40 40 60 29 29 30 29 35 69 105 93 100 100 Greatest Overweight (x) 12 | . 1 . . . 12 1 . . 1 . 2 5 1 3 2 Average Overweight (x) . | . . . . . . . . . . . . . . . . Largest Inventory Capacity 15 | 8 15 15 15 15 15 15 5 5 5 5 5 15 15 15 15 Average Capacity 10 | 5 11 15 15 15 15 5 5 5 5 5 5 7 15 15 13 Most Carried 15 | 4 12 12 11 11 15 14 5 5 5 4 5 15 15 9 12 Average Carried 8 | 1 7 10 10 11 13 4 4 3 4 3 4 6 12 7 9 Final Capacity 15 | 8 15 15 15 15 15 5 5 5 5 5 5 15 15 15 5 Final Carried 15 | 3 12 10 11 11 12 5 2 5 4 . 5 15 8 9 5 Class Distribution -------------------- 40% | Mutant 17% | Hacker-Sprinter 14% | Infiltrator-Mutant 11% | Hacker-Mutant 8% | Assassin 7% | Skirmisher Dominant Class ---------------- Mutant | -10/Materials Mutant | -10/Mines Mutant | -10/Exiles Mutant | -9/Mines Assassin | -8/Materials Hacker-Sprinter | -7/Factory Hacker-Sprinter | -6/Factory Hacker-Sprinter | -6/Lower Caves Hacker-Sprinter | -6/Lower Caves Hacker-Sprinter | -5/Factory Hacker-Mutant | -4/Factory Infiltrator-Mutant | -3/Research Mutant | -3/Armory Mutant | -2/Research Mutant | -2/Quarantine Resources | -11 -10 -10 -10 -9 -8 -7 -6 -6 -6 -5 -4 -3 -3 -2 -2 ----------- Run | Yrd Mat Min Exi Min Mat Fac Fac Low Low Fac Fac Res Arm Res Qua Matter Collected 3694 | 241 457 111 . . 652 17 . 341 310 347 419 413 318 68 . Remotely . | . . . . . . . . . . . . . . . . Salvage Created 5803 | . 644 124 . . 1620 95 . . 232 280 497 918 1224 169 . Parts 342 | . 35 7 . . 71 11 . . 12 18 20 74 82 12 . Haulers Intercepted 9 | . 2 . . . 3 . . . . 1 1 2 . . . Recyclers Shooed . | . . . . . . . . . . . . . . . . Parts Field Recycled . | . . . . . . . . . . . . . . . . Retrieved Matter . | . . . . . . . . . . . . . . . . Parts Self-Destructed 11 | . . . . . . . . 2 9 . . . . . . Prevented . | . . . . . . . . . . . . . . . . Kills | -11 -10 -10 -10 -9 -8 -7 -6 -6 -6 -5 -4 -3 -3 -2 -2 ------- Run | Yrd Mat Min Exi Min Mat Fac Fac Low Low Fac Fac Res Arm Res Qua Combat Hostiles Destroyed 97 | . 13 5 . . 26 8 . . 7 2 4 7 20 5 . Melee 63 | . . . . . 20 1 . . 7 2 2 7 19 5 . Guns 26 | . 13 5 . . 6 . . . . . 2 . . . . AOE 8 | . . . . . . 7 . . . . . . 1 . . Classes Destroyed 12 | . 4 . . . 5 . . . . 2 . . 1 . . Worker 8 | . . . . . 2 . . . . 1 . 5 . . . Builder 4 | . . . . . . . . . . 1 . 3 . . . Hauler 9 | . 2 . . . 3 . . . . 1 1 2 . . . Recycler 4 | . . . . . 2 . . . . . 1 1 . . . Operator 4 | . 3 . . . 1 . . . . . . . . . . Watcher 5 | . . . . . 2 . . . . 2 . 1 . . . Swarmer 34 | . 3 3 . . 1 8 . . 7 . . . 7 5 . Grunt 30 | . 10 2 . . 16 . . . . . . . 2 . . Sentry 10 | . . . . . 7 . . . . . . . 3 . . Specialist 1 | . . . . . . . . . . . . . 1 . . Hunter 3 | . . . . . 2 . . . . . 1 . . . . Programmer 19 | . . . . . . . . . . 2 3 7 7 . . Decomposer 2 | . . . . . . . . . 2 . . . . . . Best Kill Streak 7 | . 3 3 . . 4 7 . . 7 2 2 4 5 5 . Combat Bots Only 7 | . 3 3 . . 4 7 . . 7 2 1 3 5 5 . Max Kills in Single Turn 2 | . 1 1 . . 1 2 . . 1 1 1 1 1 1 . Gunslinging . | . . . . . . . . . . . . . . . . Exploded 2 | . . . . . . 2 . . . . . . 1 . . Melee 1 | . . . . . 1 1 . . 1 1 1 1 1 1 . Uniques/NPCs Destroyed . | . . . . . . . . . . . . . . . . Combat | -11 -10 -10 -10 -9 -8 -7 -6 -6 -6 -5 -4 -3 -3 -2 -2 -------- Run | Yrd Mat Min Exi Min Mat Fac Fac Low Low Fac Fac Res Arm Res Qua Hostile Shots Fired 1367 | . 73 42 . . 219 126 18 87 54 20 182 57 244 70 175 Missed 566 | . 18 9 . . 71 69 12 54 23 9 83 24 114 23 57 Hits 801 | . 55 33 . . 148 57 6 33 31 11 99 33 130 47 118 Melee 17 | . . . . . . 9 . . . . . . 4 . 4 Projectile 784 | . 55 33 . . 148 48 6 33 31 11 99 33 126 47 114 AOE 7 | . . 1 . . 1 2 . . . . 2 . 1 . . Critical Strikes 35 | . . . . . 9 3 . 1 1 . 9 2 4 . 6 Actively Blocked 1 | . . . . . . . . . . . 1 . . . . Part Disruptions 4 | . . . . . . . . . . . . 1 3 . . Damage Taken 15507 | . 678 368 . . 2337 959 91 510 416 217 2178 873 3025 1103 2752 Core 4004 | . 134 46 . . 402 397 46 101 81 18 1044 57 322 321 1035 Absorbed by Shields 98 | . . . . . 68 . . . . . . . 30 . . Redirected to Core 192 | . . . . . . . . . . . . . . . 192 Redirected to Shielding 87 | . . . . . . 24 11 . . . 52 . . . . Core Remaining (%) 55 | 100 . . . 28 26 43 . . 73 98 9 . 70 . . Volleys Fired 169 | . 80 21 . . 38 15 . . . . 14 . 1 . . Largest 2 | . 2 2 . . 2 1 . . . . 1 . 1 . . Hottest 113 | . 40 40 . . 74 33 . . . . 75 . 113 . . Shots Fired 301 | . 160 37 . . 72 15 . . . . 14 . 3 . . Gun 270 | . 160 37 . . 58 1 . . . . 14 . . . . Cannon 15 | . . . . . 14 . . . . . . . 1 . . Launcher 16 | . . . . . . 14 . . . . . . 2 . . Special . | . . . . . . . . . . . . . . . . Kinetic 270 | . 160 37 . . 72 1 . . . . . . . . . Thermal 15 | . . . . . . . . . . . 14 . 1 . . Explosive 14 | . . . . . . 14 . . . . . . . . . Electromagnetic 2 | . . . . . . . . . . . . . 2 . . Robot Hit Streak 25 | . 25 10 . . 20 2 . . . . 6 . 6 . . Robot Miss Streak 5 | . 4 4 . . 5 3 . . . . 2 . 3 . . Penetration Max . | . . . . . . . . . . . . . . . . Secondary Targets 3 | . 2 1 . . . . . . . . . . . . . Max Gunslinging Chain 1 | . 1 1 . . . . . . . . . . . . . Shots Hit Robots 403 | . 111 21 . . 134 9 . . 14 13 19 32 44 6 . Core Hits 174 | . 36 8 . . 54 11 . . 7 6 8 15 25 4 . Critical Kills 1 | . 1 . . . . . . . . . . . . . . Critical Parts Destroyed . | . . . . . . . . . . . . . . . . Critical Strikes 22 | . 1 . . . 6 . . . . . . 5 8 2 . Destroy 1 | . 1 . . . . . . . . . . . . . . Sever 6 | . . . . . 6 . . . . . . . . . . Impale 15 | . . . . . . . . . . . . 5 8 2 . Melee Attacks 331 | . . . . . 99 7 . . 22 17 47 61 64 10 4 Impact . | . . . . . . . . . . . . . . . . Slashing 160 | . . . . . 99 7 . . 22 17 15 . . . . Piercing 171 | . . . . . . . . . . . 32 61 64 10 4 Sneak Attacks 34 | . . . . . 7 . . . 4 4 4 13 1 1 . Combat Hostiles 6 | . . . . . 1 . . . 2 . 2 . 1 . . Follow-up Attacks . | . . . . . . . . . . . . . . . . Damage Inflicted 13831 | . 1168 219 . . 3857 893 . . 698 734 792 2388 2781 296 5 Guns 2482 | . 1168 219 . . 798 . . . . . 297 . . . . Cannons 278 | . . . . . 241 . . . . . . . 37 . . Explosions 853 | . . . . . . 715 . . . . . . 138 . . Melee 10174 | . . . . . 2791 178 . . 698 734 483 2388 2606 296 . Ramming 44 | . . . . . 27 . . . . . 12 . . . 5 Kinetic 2426 | . 1168 219 . . 1039 . . . . . . . . . . Thermal 334 | . . . . . . . . . . . 297 . 37 . . Explosive 715 | . . . . . . 715 . . . . . . . . . Electromagnetic 138 | . . . . . . . . . . . . . 138 . . Impact . | . . . . . . . . . . . . . . . . Slashing 4828 | . . . . . 2791 178 . . 698 734 427 . . . . Piercing 5346 | . . . . . . . . . . . 56 2388 2606 296 . Highest Corruption 20 | . . . . . . 3 . 1 1 1 12 7 20 . 10 Average Corruption 7 | . . . . . . 2 . 1 1 1 9 5 12 . 6 Corruption Purged . | . . . . . . . . . . . . . . . . Corruption Blocked . | . . . . . . . . . . . . . . . . Effects 68 | . . . . . . 1 . . . . 17 12 34 . 4 Message Errors 18 | . . . . . . 1 . . . . 7 3 7 . . Matter Fused 16 | . . . . . . . . . . . 1 4 10 . 1 Heat Flow Errors 4 | . . . . . . . . . . . 1 2 1 . . Energy Discharges 7 | . . . . . . . . . . . 3 . 3 . 1 Parts Rejected 2 | . . . . . . . . . . . . . 2 . . Data Loss (minor) 11 | . . . . . . . . . . . 4 2 4 . 1 Data Loss (major) 2 | . . . . . . . . . . . 1 1 . . . Misfires 2 | . . . . . . . . . . . . . 2 . . Alerts 1 | . . . . . . . . . . . . . . . 1 Misdirections 5 | . . . . . . . . . . . . . 5 . . Overload Shots . | . . . . . . . . . . . . . . . . Overflow Damage 1185 | . . . . . 72 26 . . 124 157 3 491 192 120 . Projectiles . | . . . . . . . . . . . . . . . . Explosions 10 | . . . . . . 9 . . . . . . 1 . . Melee 1175 | . . . . . 72 17 . . 124 157 3 491 191 120 . Knockbacks 7 | . . . . . 7 . . . . . . . . . . Impact 1 | . . . . . 1 . . . . . . . . . . Kinetic 6 | . . . . . 6 . . . . . . . . . . Secondary . | . . . . . . . . . . . . . . . . Self-Inflicted Damage 113 | . . . . . . 2 . . . . 5 . 104 . 2 Shots 9 | . . . . . . 1 . . . . . . 8 . . Rammed 5 | . . . . . . . . . . . 4 . . . 1 Targets Rammed 8 | . . . . . 3 . . . . . 4 . . . 1 Kicked 3 | . . . . . 3 . . . . . . . . . . Crushed . | . . . . . . . . . . . . . . . . Highest Temperature 400 | . 25 16 . . 33 65 . 102 5 . 255 400 263 44 280 Average Temperature 52 | . 8 8 . . 7 30 . 32 5 . 69 158 62 14 103 Received Heat Transfer 1995 | . 291 96 . . 975 72 . 75 6 . 36 . 120 27 297 Effects 2 | . . . . . . . . . . . 1 1 . . . Energy Bleed 1 | . . . . . . . . . . . 1 . . . . Damage (minor) 1 | . . . . . . . . . . . . 1 . . . Siege Activations . | . . . . . . . . . . . . . . . . Martial Activations . | . . . . . . . . . . . . . . . . Shielding Activations . | . . . . . . . . . . . . . . . . Robots Disrupted . | . . . . . . . . . . . . . . . . Combat Hostiles . | . . . . . . . . . . . . . . . . Robots Corrupted . | . . . . . . . . . . . . . . . . Combat Hostiles . | . . . . . . . . . . . . . . . . Parts Fried . | . . . . . . . . . . . . . . . . Impact Corruptions . | . . . . . . . . . . . . . . . . Robots Melted . | . . . . . . . . . . . . . . . . Combat Hostiles . | . . . . . . . . . . . . . . . . Parts Melted 3 | . . . . . 1 . . . . . 2 . . . . Heat Transferred 444 | . . . . . . . . . . . 407 . 37 . . Parts Sabotaged 3 | . . . . . . . . . . . . . 3 . . Parts Stolen . | . . . . . . . . . . . . . . . . Parts Stripped . | . . . . . . . . . . . . . . . . Power Chain Reactions . | . . . . . . . . . . . . . . . . Alert | -11 -10 -10 -10 -9 -8 -7 -6 -6 -6 -5 -4 -3 -3 -2 -2 ------- Run | Yrd Mat Min Exi Min Mat Fac Fac Low Low Fac Fac Res Arm Res Qua Maximum Alert Level 5 | . . . . . 1 1 . . . . . . 1 . 5 Low Security (%) 93 | 100 100 100 . 100 86 76 100 . . 100 100 100 98 100 . Level 1 4 | . . . . . 13 23 . . . . . . 1 . . Level 2 . | . . . . . . . . . . . . . . . . Level 3 . | . . . . . . . . . . . . . . . . Level 4 . | . . . . . . . . . . . . . . . . Level 5 . | . . . . . . . . . . . . . . . . High Security . | . . . . . . . . . . . . . . . . Max Security 2 | . . . . . . . . . . . . . . . 99 Peak Influence 1795 | . 76 50 . . 311 268 127 . . 137 111 106 211 149 1795 Initial 137 | . . . . . . 135 127 . . 137 37 27 17 81 72 Average 93 | . 23 7 . . 84 154 23 . . 94 21 32 110 108 1621 Influence Increases 4370 | . 384 135 . . 854 437 30 360 220 81 385 306 645 248 285 Destroy 0b10 Robot/C 1960 | . 260 100 . . 540 160 . . 140 40 80 140 400 100 . Destroy 0b10 Robot/NC 170 | . 25 . . . 50 . . . . 25 10 60 . . . Destroy Leader 456 | . 74 20 . . 160 20 . . 20 16 22 24 90 10 . Allied During Kill 13 | . . . . . 13 . . . . . . . . . . Trap Triggered on 0b10 20 | . . . . . . . . . . . 20 . . . . Successful Hack 46 | . 10 . . . 30 . . . . . . 6 . . . Disable Machine 60 | . . . . . . 15 . . . . . . . . 45 Destroy Structure 190 | . . . . . 1 62 . . . . 58 46 20 3 . Partial Spotted 75 | . . . . . . . . . . . 15 . 45 15 . Lose Combat Pursuer 1380 | . 15 15 . . 60 180 30 360 60 . 180 30 90 120 240 Influence Decreases 4103 | . 384 135 . . 555 476 260 120 272 221 411 324 524 274 147 Entered New Map 656 | . . . . . . 164 133 12 52 81 41 25 17 74 57 Time Decay 2586 | . 374 115 . . 376 222 127 108 180 120 248 269 317 130 . Lost Part 802 | . 10 20 . . 120 90 . . 40 20 122 30 190 70 90 Lost Ally 59 | . . . . . 59 . . . . . . . . . . Squads Dispatched 50 | . 4 . . . 4 5 1 . . 1 8 7 6 2 12 Investigation 7 | . 1 . . . 3 . . . . . 2 . 1 . . Extermination 16 | . . . . . . 1 1 . . 1 4 5 3 1 . Reinforcement 15 | . 3 . . . 1 4 . . . . 2 2 2 1 . Assault 12 | . . . . . . . . . . . . . . . 12 Garrison . | . . . . . . . . . . . . . . . . Intercept . | . . . . . . . . . . . . . . . . Searches Triggered . | . . . . . . . . . . . . . . . . Construction Impeded 1 | . . . . . . 1 . . . . . . . . . Haulers Reinforced . | . . . . . . . . . . . . . . . . Active Scanning Responses . | . . . . . . . . . . . . . . . . Cargo Convoy Interrupts 1 | . . . . . . . . . . . 1 . . . . Stealth | -11 -10 -10 -10 -9 -8 -7 -6 -6 -6 -5 -4 -3 -3 -2 -2 --------- Run | Yrd Mat Min Exi Min Mat Fac Fac Low Low Fac Fac Res Arm Res Qua Distress Signals 11 | . 1 . . . 5 . . . . . 1 2 1 . 1 Communications Jammed 92 | . . . . . . . . . . . 13 11 53 6 9 Distress Signals 87 | . . . . . . . . . . . 13 6 53 6 9 Times Spotted 374 | . 43 6 . . 60 34 6 32 10 4 46 26 35 18 54 Peak Tracking Total 33 | . 5 3 . . 7 12 4 12 4 2 18 5 6 5 33 Tactical Retreats 44 | . 1 1 . . 4 5 1 7 3 . 6 6 5 3 2 Traps | -11 -10 -10 -10 -9 -8 -7 -6 -6 -6 -5 -4 -3 -3 -2 -2 ------- Run | Yrd Mat Min Exi Min Mat Fac Fac Low Low Fac Fac Res Arm Res Qua Traps Triggered 12 | . 3 . . . 1 1 . . . . 3 1 3 . . Indirectly . | . . . . . . . . . . . . . . . . Trap Hack Attempts . | . . . . . . . . . . . . . . . . Triggered . | . . . . . . . . . . . . . . . . Disarmed . | . . . . . . . . . . . . . . . . Reprogrammed . | . . . . . . . . . . . . . . . . Reused 2 | . . . . . . . . . . . 2 . . . . Traps Reconfigurated 16 | . . . . . 3 2 2 . . . 9 . . . . Traps Extracted . | . . . . . . . . . . . . . . . . Installed . | . . . . . . . . . . . . . . . . Triggered 2 | . . . . . . . . . . . 2 . . . . Machines | -11 -10 -10 -10 -9 -8 -7 -6 -6 -6 -5 -4 -3 -3 -2 -2 ---------- Run | Yrd Mat Min Exi Min Mat Fac Fac Low Low Fac Fac Res Arm Res Qua Machines Disabled 4 | . . . . . . 1 . . . . . . . . 3 Max in Single Turn 1 | . . . . . . 1 . . . . . . . . 1 Garrison Access 3 | . . . . . 1 . 1 . . . . 1 . . . Machines Repaired . | . . . . . . . . . . . . . . . . Machines Dismantled . | . . . . . . . . . . . . . . . . Machines Sabotaged . | . . . . . . . . . . . . . . . . Overloaded Fab Kills . | . . . . . . . . . . . . . . . . Hacking | -11 -10 -10 -10 -9 -8 -7 -6 -6 -6 -5 -4 -3 -3 -2 -2 --------- Run | Yrd Mat Min Exi Min Mat Fac Fac Low Low Fac Fac Res Arm Res Qua Machines Accessed 35 | . 2 . 1 . 9 3 2 2 . 2 6 3 3 2 . Terminals 20 | . 2 . . . 5 3 . . . . 4 1 3 2 . Fabricators 2 | . . . . . . . . . . . 2 . . . . Repair Stations 1 | . . . . . . . . . . 1 . . . . . Recycling Units 4 | . . . . . 2 . 1 . . 1 . . . . . Scanalyzers 1 | . . . . . 1 . . . . . . . . . . Garrison Access 4 | . . . . . 1 . 1 . . . . 2 . . . Total Hacks 87 | . 6 . 1 . 27 6 9 2 . 4 15 8 4 5 . Successful 47 | . 3 . 1 . 16 3 7 2 . 3 7 4 . 1 . Failed 40 | . 3 . . . 11 3 2 . . 1 8 4 4 4 . Catastrophic 9 | . . . . . 1 . . . . 1 3 1 2 1 . Database Lockouts . | . . . . . . . . . . . . . . . . Manual 40 | . 6 . 1 . 11 6 . . . . 9 3 4 . . Terminals 48 | . 6 . . . 14 6 . . . . 9 4 4 5 . Fabricators 6 | . . . . . . . . . . . 6 . . . . Repair Stations 1 | . . . . . . . . . . 1 . . . . . Recycling Units 15 | . . . . . 5 . 7 . . 3 . . . . . Scanalyzers 7 | . . . . . 7 . . . . . . . . . . Garrison Access 7 | . . . . . 1 . 2 . . . . 4 . . . Terminal Hacks 14 | . . . 1 . 4 3 . 2 . . 1 2 . 1 . Record 2 | . . . . . . . . . . . . 2 . . . Prototype ID Bank 1 | . . . . . 1 . . . . . . . . . . Open Door 3 | . . . . . . . . 2 . . . . . 1 . Level Access Points 2 | . . . . . 1 1 . . . . . . . . . Alert Level 3 | . . . . . 1 1 . . . . 1 . . . . Hauler Manifests 1 | . . . . . 1 . . . . . . . . . . Registered Components 1 | . . . . . . 1 . . . . . . . . . Proto ID Catalog 1 | . . . 1 . . . . . . . . . . . . Fabricator Hacks 4 | . . . . . . . . . . . 4 . . . . Load Schematic 2 | . . . . . . . . . . . 2 . . . . Build 2 | . . . . . . . . . . . 2 . . . . Repair Station Hacks . | . . . . . . . . . . . . . . . . Recycling Unit Hacks 11 | . . . . . 2 . 6 . . 3 . . . . . Recycle Component 2 | . . . . . . . 2 . . . . . . . . Process 4 | . . . . . . . 2 . . 2 . . . . . Report Inventory 2 | . . . . . 2 . . . . . . . . . . Retrieve Matter 3 | . . . . . . . 2 . . 1 . . . . . Scanalyzer 6 | . . . . . 6 . . . . . . . . . . Insert Component 3 | . . . . . 3 . . . . . . . . . . Analyze 3 | . . . . . 3 . . . . . . . . . . Garrison Access Hacks 3 | . . . . . 1 . 1 . . . . 1 . . . Seal Access 3 | . . . . . 1 . 1 . . . . 1 . . . Unauthorized Hacks 9 | . 3 . . . 3 . . . . . 2 1 . . . Terminals 9 | . 3 . . . 3 . . . . . 2 1 . . . Botnet 6 | . 2 . . . 1 . . . . . 2 1 . . . Operators 3 | . 1 . . . 2 . . . . . . . . . . Fabricators . | . . . . . . . . . . . . . . . . Repair Stations . | . . . . . . . . . . . . . . . . Recycling Units . | . . . . . . . . . . . . . . . . Scanalyzers . | . . . . . . . . . . . . . . . . Garrison Access . | . . . . . . . . . . . . . . . . Data Cores Recovered . | . . . . . . . . . . . . . . . . Used . | . . . . . . . . . . . . . . . . Hacking Detections 24 | . 1 . . . 6 1 1 . . 2 6 2 3 2 . Full Trace Events 5 | . . . . . 2 . . . . . 2 . 1 . . Feedback Events . | . . . . . . . . . . . . . . . . Feedback Blocked . | . . . . . . . . . . . . . . . . Robot Schematics Acquired . | . . . . . . . . . . . . . . . . Robots Built . | . . . . . . . . . . . . . . . . Authchips . | . . . . . . . . . . . . . . . . Time . | . . . . . . . . . . . . . . . . Total Robot Build Rating . | . . . . . . . . . . . . . . . . Part Schematics Acquired 3 | . . . . . 3 . . . . . . . . . . Parts Built 2 | . . . . . . . . . . . 2 . . . . Authchips . | . . . . . . . . . . . . . . . . Time 72 | . . . . . . . . . . . 72 . . . . Total Part Build Rating 6 | . . . . . . . . . . . 6 . . . . Parts Repaired . | . . . . . . . . . . . . . . . . Time . | . . . . . . . . . . . . . . . . Parts Recycled 2 | . . . . . . . 2 . . . . . . . . Recycled Matter 40 | . . . . . . . 30 . . 10 . . . . . Retrieved Matter 40 | . . . . . . . 30 . . 10 . . . . . Retrieved Components . | . . . . . . . . . . . . . . . . Parts Scanalyzed 3 | . . . . . 3 . . . . . . . . . . Part Schematics Acquired 3 | . . . . . 3 . . . . . . . . . . Parts Damaged . | . . . . . . . . . . . . . . . . Bothacking | -11 -10 -10 -10 -9 -8 -7 -6 -6 -6 -5 -4 -3 -3 -2 -2 ------------ Run | Yrd Mat Min Exi Min Mat Fac Fac Low Low Fac Fac Res Arm Res Qua Used RIF Installer . | . . . . . . . . . . . . . . . . Robots Hacked . | . . . . . . . . . . . . . . . . Non-combat . | . . . . . . . . . . . . . . . . Combat . | . . . . . . . . . . . . . . . . Robot Hacks Applied . | . . . . . . . . . . . . . . . . Relay Couplers Released . | . . . . . . . . . . . . . . . . Fabnet Peak Effective % . | . . . . . . . . . . . . . . . . Robots Rewired . | . . . . . . . . . . . . . . . . Allies Hacked . | . . . . . . . . . . . . . . . . Hacks Repelled . | . . . . . . . . . . . . . . . . Allies | -11 -10 -10 -10 -9 -8 -7 -6 -6 -6 -5 -4 -3 -3 -2 -2 -------- Run | Yrd Mat Min Exi Min Mat Fac Fac Low Low Fac Fac Res Arm Res Qua Total Allies 3 | . . . . 3 . . . . . . . . . . . Largest Group 3 | . . . . 3 3 . . . . . . . . . . Highest-Rated Group 40 | . . . . 40 40 . . . . . . . . . . Highest-Rated Ally 16 | . . . . 16 16 . . . . . . . . . . Total Orders . | . . . . . . . . . . . . . . . . Ally Attacks 34 | . . . . . 34 . . . . . . . . . . Total Damage 372 | . . . . . 372 . . . . . . . . . . Kills 1 | . . . . . 1 . . . . . . . . . . Allies Corrupted . | . . . . . . . . . . . . . . . . Allies Melted . | . . . . . . . . . . . . . . . . Intel | -11 -10 -10 -10 -9 -8 -7 -6 -6 -6 -5 -4 -3 -3 -2 -2 ------- Run | Yrd Mat Min Exi Min Mat Fac Fac Low Low Fac Fac Res Arm Res Qua Active Infowar (turns) 6747 | . 615 . . . 2119 . . 7 . 125 968 1615 818 268 212 Optics 2910 | . . . . . . . . . . . . 1612 818 268 212 Sensors 2734 | . 615 . . . 2119 . . . . . . . . . . Cloaking 191 | . . . . . . . . . . . 179 . . . 12 Jamming 3633 | . . . . . . . . . . 125 789 1502 818 217 182 ECM 1665 | . . . . . . . . 7 . . 162 1496 . . . Robot Analysis Total . | . . . . . . . . . . . . . . . . Derelict Logs Recovered 2 | . . . . . . . . 1 1 . . . . . . Drone Launches . | . . . . . . . . . . . . . . . . Drone Recoveries . | . . . . . . . . . . . . . . . . Exploration | -11 -10 -10 -10 -9 -8 -7 -6 -6 -6 -5 -4 -3 -3 -2 -2 ------------- Run | Yrd Mat Min Exi Min Mat Fac Fac Low Low Fac Fac Res Arm Res Qua Turns Passed 12168 | 158 1543 743 453 37 2700 465 737 377 373 253 1213 1761 818 268 269 Spaces Moved 11709 | 93 859 268 283 24 1574 631 302 1129 756 683 1367 2088 1057 315 280 Core 157 | 2 . . . . 12 . . . . . 54 37 . . 52 Treads 1155 | 91 350 268 283 24 139 . . . . . . . . . . Legs 1704 | . 509 . . . 1195 . . . . . . . . . . Wheels 228 | . . . . . 228 . . . . . . . . . . Hover 3917 | . . . . . . . . . . . 524 1811 1057 315 210 Flight 4548 | . . . . . . 631 302 1129 756 683 789 240 . . 18 Fastest Speed 16 | 50 120 160 160 160 100 23 27 27 26 26 20 16 35 49 35 Average Speed 63 | 157 137 160 160 160 124 35 32 29 27 26 34 39 43 63 84 Slowest Speed 650 | 160 240 160 160 160 650 107 35 35 106 28 150 300 131 290 240 Overloaded Moves 16 | . . . . . . . . . . . . 6 10 . . Propulsion Burnouts . | . . . . . . . . . . . . . . . . Robots Hopped 37 | . . . . . . 18 2 8 2 1 2 1 . . 3 Potential Cave-ins 2 | . . . . . . . . . . . 2 . . . . Cave-ins Triggered . | . . . . . . . . . . . . . . . . Teleports 1 | . . . . . . . . . . . . . . . 1 Exploration Rate (%) 41 | 5 84 48 60 5 86 23 5 96 49 16 31 44 64 10 44 Regions Visited 15 Branch Regions 7 Pre-discovered Areas . | . . . . . . . . . . . . . . . . Known Exits Taken 3 | . . . . . 1 1 . . . 1 . . . . . Unknown Exits Taken 12 | 1 1 1 1 1 . . 1 1 1 . 1 1 1 1 . Scrap Searched 8 | . . 1 . . . . . 5 2 . . . . . . Spaces Dug 67 | . . . . . 1 . . . . . 31 24 10 1 . Terrain Destroyed 139 | . . . . . 1 72 . . . . 31 24 10 1 . Melee 67 | . . . . . 1 . . . . . 31 24 10 1 . Projectile . | . . . . . . . . . . . . . . . . AOE 72 | . . . . . . 72 . . . . . . . . . Terrain Rammed . | . . . . . . . . . . . . . . . . Walls Destroyed . | . . . . . . . . . . . . . . . . Machines Disabled . | . . . . . . . . . . . . . . . . Actions | -11 -10 -10 -10 -9 -8 -7 -6 -6 -6 -5 -4 -3 -3 -2 -2 --------- Run | Yrd Mat Min Exi Min Mat Fac Fac Low Low Fac Fac Res Arm Res Qua Total 15502 | 102 1078 548 283 23 2075 833 939 1161 896 735 2013 2892 1269 355 300 Wait 2834 | . 105 256 . . 270 159 629 18 115 27 479 674 82 17 3 Move 11625 | 92 858 267 282 23 1573 597 298 1112 751 680 1362 2085 1056 314 275 Hop 32 | . . . . . . 15 1 8 2 1 2 1 . . 2 Pick Up 99 | 4 14 . 1 . 25 5 4 4 1 . 16 20 5 . . Fast Attach 102 | 5 4 . . . 12 4 2 5 3 5 12 25 8 10 7 Attach 77 | 1 3 2 . . 9 11 2 3 2 4 12 7 15 2 4 Detach 41 | . 2 . . . 5 7 . 6 . 1 8 4 3 2 3 Swap 52 | . 6 2 . . 19 3 . 1 . . 10 4 6 . 1 Drop 72 | . 6 . . . 22 10 3 4 . . 14 11 2 . . Fire 169 | . 80 21 . . 38 15 . . . . 14 . 1 . . Melee 331 | . . . . . 99 7 . . 22 17 47 61 64 10 4 Ram 5 | . . . . . . . . . . . 4 . . . 1 Kick 3 | . . . . . 3 . . . . . . . . . . Crush . | . . . . . . . . . . . . . . . . Escape Stasis 60 | . . . . . . . . . . . 33 . 27 . . Rewire . | . . . . . . . . . . . . . . . . Trap . | . . . . . . . . . . . . . . . . Miscellaneous . | . . . . . . . . . . . . . . . . Route ------- -11/Scrapyard -10/Materials (discovered 5 exits: [*Mat x2] / [*Min x2] / [*Sub]) -10/Mines (discovered 2 exits: [*Mat] / *Exi) -10/Exiles (discovered 2 exits: [*Min x2]) -9/Mines -8/Materials (discovered 3 exits: *Fac x3) -7/Factory (discovered 4 exits: *Fac x4) -6/Factory -6/Lower Caves -6/Lower Caves -5/Factory (discovered 2 exits: *Fac / Upp) -4/Factory -3/Research (discovered 3 exits: *Res / *Arm / [*Tes]) -3/Armory -2/Research -2/Quarantine History --------- Turn | Location | Event 9 | -11/Scrapyard | Discovered new exit (range 16) 159 | -11/Scrapyard | Entered Materials 300 | -10/Materials | Build established: Mutant 441 | -10/Materials | Discovered new exit (range 11) 530 | -10/Materials | Discovered new exit (range 11) 627 | -10/Materials | Discovered new exit (range 9) 817 | -10/Materials | Discovered new exit (range 8) 1317 | -10/Materials | Discovered new exit (range 8) 1336 | -10/Materials | Core integrity fell below 50% 1702 | -10/Materials | Entered Mines 1877 | -10/Mines | Assembled infested the area 2221 | -10/Mines | Discovered new exit (range 9) 2434 | -10/Mines | Deemed a non-threat by the Exiles lab entrance 2436 | -10/Mines | Discovered new exit (range 5) 2445 | -10/Mines | Entered Exiles 2469 | -10/Exiles | Discovered new exit (range 15) 2490 | -10/Exiles | Met 8R-AWN 2516 | -10/Exiles | Met EX-HEX 2565 | -10/Exiles | Met EX-BIN 2673 | -10/Exiles | Aligned with FarCom system 2674 | -10/Exiles | Given EX-Vault access code 2724 | -10/Exiles | Opened EX-Vault 2738 | -10/Exiles | Found Trap Reconfigurator 2771 | -10/Exiles | Warned to stay clear of 0b10 Research branches 2819 | -10/Exiles | Met EX-DEC 2877 | -10/Exiles | Discovered new exit (range 14) 2898 | -10/Exiles | Left Exiles lab with Trap Reconfigurator 2898 | -10/Exiles | Entered Mines 2905 | -9/Mines | Discovered new exit (range 10) 2924 | -9/Mines | Assisted by bots powering up and referring to "LRC-V3" 2935 | -9/Mines | Entered Materials 2935 | -8/Materials | Accompanied by 3 allies 2935 | -8/Materials | Evolved 4 slots: Propulsion x1, Utility x3 3420 | -8/Materials | Build established: Skirmisher 3576 | -8/Materials | Lost 3 allies 3595 | -8/Materials | Discovered new exit (range 5) 4325 | -8/Materials | Build established: Assassin 4417 | -8/Materials | Discovered new exit (range 16) 5179 | -8/Materials | Lost 6 parts (1p1n3u1w) 5263 | -8/Materials | Core integrity fell below 50% 5446 | -8/Materials | Build established: Mutant 5515 | -8/Materials | Identified exit to Factory 5635 | -8/Materials | Entered Factory 5635 | -7/Factory | Evolved 2 slots: Propulsion x2 5750 | -7/Factory | Lost 4 parts (3n1w) 5857 | -7/Factory | Destroyed 7 combat bots 6079 | -7/Factory | Lost 4 parts (4n) 6084 | -7/Factory | Core integrity fell below 50% 6094 | -7/Factory | Identified exit to Factory 6100 | -7/Factory | Entered another Factory area 6100 | -6/Factory | Evolved 2 slots: Power x1, Utility x1 6431 | -6/Factory | Build established: Hacker-Sprinter 6828 | -6/Factory | Discovered new exit (range 15) 6837 | -6/Factory | Entered Lower Caves 6838 | -6/Lower Caves | Encountered a Warlord checkpoint 7002 | -6/Lower Caves | Attracted the attention of an 0b10 outpost 7015 | -6/Lower Caves | Spotted B-75 Beast 7068 | -6/Lower Caves | Learned location of 1 exit from Factory 7076 | -6/Lower Caves | Found Prototype Device 7076 | -6/Lower Caves | Identified Heart of Steel 7172 | -6/Lower Caves | Attracted the attention of an 0b10 checkpoint 7212 | -6/Lower Caves | Discovered new exit (range 9) 7214 | -6/Lower Caves | Entered another Lower Caves area 7216 | -6/Lower Caves | Attracted the attention of an 0b10 checkpoint 7306 | -6/Lower Caves | Discovered new exit (range 13) 7504 | -6/Lower Caves | Destroyed 7 combat bots 7527 | -6/Lower Caves | Learned 4 Factory zone layouts 7537 | -6/Lower Caves | Spotted B-75 Beast 7587 | -6/Lower Caves | Entered Factory 7587 | -5/Factory | Evolved 2 slots: Utility x2 7588 | -5/Factory | Identified exit to Upper Caves 7668 | -5/Factory | Discovered new exit (range 15) 7691 | -5/Factory | Identified exit to Factory 7840 | -5/Factory | Entered another Factory area 7840 | -4/Factory | Evolved 2 slots: Propulsion x1, Utility x1 8118 | -4/Factory | Fabricated Hacking Suite (x1) 8165 | -4/Factory | Build established: Hacker-Mutant 8186 | -4/Factory | Fabricated Hacking Suite? 8593 | -4/Factory | System corruption reached 10% 8623 | -4/Factory | Lost 11 parts (3p6n1u1w) 8993 | -4/Factory | Lost 3 parts (2n1u) 9024 | -4/Factory | Spotted Executioner 9025 | -4/Factory | Cargo convoy interrupted 9025 | -4/Factory | Released all parts (7) 9032 | -4/Factory | Core integrity fell below 50% 9045 | -4/Factory | Discovered new exit (range 14) 9051 | -4/Factory | Core integrity fell below 20% 9053 | -4/Factory | Entered Research 9053 | -3/Research | Evolved 2 slots: Utility x2 9056 | -3/Research | Lost 3 parts (1n2u) 9138 | -3/Research | Discovered new exit (range 16) 9202 | -3/Research | Found Prototype Processor 9202 | -3/Research | Identified Spectral Analyzer 9294 | -3/Research | Found Prototype Device 9294 | -3/Research | Identified Exp. Focal Shield 9388 | -3/Research | Found Gamma Bomb Array 9473 | -3/Research | Build established: Infiltrator-Mutant 10803 | -3/Research | Discovered new exit (range 14) 10811 | -3/Research | Discovered new exit (range 15) 10814 | -3/Research | Entered Armory 10864 | -3/Armory | Found Gamma Bomb Array 11110 | -3/Armory | Build established: Mutant 11209 | -3/Armory | Found Adv. Force Booster 11211 | -3/Armory | Found Adv. Force Booster 11222 | -3/Armory | Found Unknown Device 11225 | -3/Armory | Lost 3 parts (1n2u) 11268 | -3/Armory | System corruption reached 10% 11469 | -3/Armory | Identified Quantum Capacitor 11477 | -3/Armory | Lost 11 parts (2p5n4u) 11620 | -3/Armory | Discovered new exit (range 12) 11632 | -3/Armory | Entered Research 11632 | -2/Research | Evolved 2 slots: Propulsion x1, Utility x1 11784 | -2/Research | Lost 5 parts (2p2n1u) 11867 | -2/Research | Spotted B-90 Cyclops 11897 | -2/Research | Discovered new exit (range 7) 11900 | -2/Research | Entered Quarantine 11901 | -2/Quarantine | Maximum security lockdown engaged 11927 | -2/Quarantine | Found Alien Reactor 11927 | -2/Quarantine | Identified Matter Drive 11946 | -2/Quarantine | Found Alien Artifact 11946 | -2/Quarantine | Identified Phase Redirector 11982 | -2/Quarantine | Found Prototype Processor 11982 | -2/Quarantine | Identified Exp. Core Analyzer 12044 | -2/Quarantine | Found Alien Artifact 12044 | -2/Quarantine | Identified Hpw. Transdimensional Reconstructor 12044 | -2/Quarantine | Warped through subspace 12055 | -2/Quarantine | Cryocooling Duct disabled 12070 | -2/Quarantine | Ambient heat levels rising (+20) 12101 | -2/Quarantine | Found Alien Artifact 12101 | -2/Quarantine | Identified Phase Armor 12107 | -2/Quarantine | Spotted Executioner 12134 | -2/Quarantine | Released all parts (15) 12142 | -2/Quarantine | Core integrity fell below 50% 12146 | -2/Quarantine | Lost 7 parts (2p2n3u) 12149 | -2/Quarantine | System corruption reached 10% 12164 | -2/Quarantine | Core integrity fell below 20% 12169 | -2/Quarantine | Destroyed by G-73 Enforcer with Phase Gun Last Messages --------------- 12138_ Quantum Separator disabled. 12138_ E-15 Imp destroyed. 12141_ Acquired Cesium-ion Thruster. 12143_ Quantum Separator disabled. 12145_ System corrupted: Component data lost. 12149_ Cesium-ion Thruster destroyed. 12149_ Penetrated by Slug. 12150_ Slug penetrates Wall. 12157_ Penetrated by Slug. 12159_ Slammed into E-15 Imp. 12159_ Slug penetrates Door. 12161_ Penetrated by Slug. 12167_ Slug penetrates Garrison Access. 12168_ System corrupted: Matter fused (-6). 12168_ Penetrated by Slug. 12168_ Garrison Access under remote control. 12169_ Critical hit (Burn: +37). [Achievement: 10k Club] [Achievement: Just Browsing] [Achievement: Achiever] Map ----- +----------------------------------------------------+ | ?????????????????????????????????????????????????? | | ??????????##########???????########??????????????? | | ?????#+???# ######? +??????????????? | | ###### ???# """ # #? "" #??????????????? | | != # ???# "R # # "" ???????????????? | | !! # ???# """ # # """" ???????????????? | | !! # #??# "" + + "]"" ???????????????? | | / # #??# # # """" ???????????????? | | """" # #??# # # #??????????????? | | """" # #### # #? #??????????????? | | """" # + # #############????????????? | | # #####p#### " #????????????? | | """" # #####g#### p " #????????????? | | """ # gg " """ """ #????????????? | | """" / lY g Y # """"""""" #????????????? | | # g g E # #????????????? | | """" + glg gg gg p # #????????????? | | """" # #######g##### # #????????????? | | """" # #???? ?????# #####+#######????????????? | | # #??? ??????# p ##### ##?????????????????? | | ###### #???????????# #?????????????????? | | ????# #???????????# Y e #?????????????????? | | ??# #???????????#!! e " #?????????????????? | | """ # ###?????????#!Y "" #?????????????????? | | """ + +?????????#!! G #?????????????????? | | """ # #?????????# @ "" #?????????????????? | | ??# #######/###g%! " #?????????????????? | | ????# g% ! #?????????????????? | | ?????+ b % #?????????????????? | | ?????# % % #?????????????????? | | " ### #?????????????????? | | """ ####"###;;;%;#######?# #?????????????????? | | ?""" ?? ?# ! #????# #?????????????????? | | ?"""??# ] ?# w """ #????# #?????????????????? | | ? ???# # C " #????# #?????????????????? | | ? ???# # """"" #????# #?????????????????? | | ? ????#* # C""""" #????# +?????????????????? | | ??????# # ###### #?????????????????? | | ??????# """ # ##"""""/###?????????????????? | | ??????# """ # #" #?????????????????? | | ??????# ??? # #" """ #?????????????????? | | ??????#?????###"+"####" ""R" ! #?????????????????? | | ??????????????## #### " "" " #?????????????????? | | ??????????????#" "## " = #?????????????????? | | ??????????????#" "#""""""###"""#?????????????????? | | ?????????????### "" """T""" "#?????????????????? | | ?????????????# " """ """ "#?????????????????? | | ?????? # ="#?????????????????? | | # "#?????????????????? | | """ + """""""" "#?????????????????? | +----------------------------------------------------+ Best States ------------- Heat Dissipation 75 Energy Generation 56 Energy Capacity 745 Matter Stores 300 Matter Capacity 300 Sight Range 24 Robot Scan Range 15 Terrain Scan Density 10 ECM Strength 2 Jamming Range 16 Cloak Strength 3 Power Amplification 60 Additional Mass Support 9 Corruption Block 20 Armor Coverage 450 Utility Shielding 66 Point Defense Rating 240 Evasion (%) 70 Melee Accuracy 30 Recoil Reduction 7 Force Boost 40 Offensive Hacking 30 Defensive Hacking 10 Item Schematics ----------------- Hacking Suite | -8/Materials | Scanalyzed System Shield | -8/Materials | Scanalyzed Imp. VTOL Module | -8/Materials | Scanalyzed Robot Schematics ------------------ None Fabricated ------------ Hacking Suite | x1 | -4/Factory Hacking Suite | x1 | -4/Factory Repaired ---------- Nothing Alien Tech Used ----------------- Matter Drive Phase Redirector High-powered Transdimensional Reconstructor Phase Armor Achievements -------------- 10k Club Achiever Alien Tech Just Browsing No Signal Respectable Loadout Rockin' Loadout Streaker Subspace Traveler Total Silence Challenges ------------ None Game ------ Seed LobotomyFortressSpoofer Manual? 0 Play Time 02:18:55 Cumulative 27.5 hours Start 2025.10.09 @ 11:46:59 End 2025.10.09 @ 14:05:14 Sessions 1 Manual Loads 0 Difficulty Rogue Special Mode None Game No. 71 Rogue 64 Adventurer 7 Explorer 0 Win Type - Total 0 Types 0/0/0/0/0/0/0/0/0/0 Lore% 5 Gallery% 25 Achievement% 26 Wizard Run 0 Options --------- Layout 0 ASCII 0 Keyboard 1 Movement Vi Keybinds 0 Fullscreen 1 Font 18/SmallcapsGlow Map View 112x50 Zoom Use 0% Tactical HUD 1 Map Filters NONE Filters NONE Steam X RUN: 5a39bec4-8247-4639-858c-a1990c085790